Cogmind - Beta 16 @@@ ROGUE MODE // 2025.11.15 @ 20:41:01 Player: tthaar Result: Destroyed by Y-45 Defender with Beam Rifle Performance ------------- Evolutions (1) 500 Regions Visited (2) 400 Robots Destroyed (36) 180 Value Destroyed (808) 808 Prototype IDs (2) 40 Alien Tech Used (0) 0 Bonus (0) 0 TOTAL SCORE: 1928 Bonus ------- None Cogmind --------- Core Integrity 0/400 Matter 290/300 Energy 66/100 System Corruption 5% Temperature Warm (100) Movement Core (50) Location -9/Materials Parts ------- > --- POWER (1) -------- (None) > --- PROPULSION (4) --- (None) > --- UTILITY (2) ------ Transport Network Coupler Hacking Suite > --- WEAPON (2) ------- Beam Rifle > --- INVENTORY (5) ---- Flight Unit High-capacity Matter Pod (200) Backup Plating I Peak State ------------ > --- POWER ------------ Light Nuclear Core > --- PROPULSION ------- Aluminum Leg Aluminum Leg Aluminum Leg Aluminum Leg > --- UTILITY ---------- Transport Network Coupler Hacking Suite > --- WEAPON ----------- Particle Cannon EMP Blaster > --- INVENTORY -------- Flight Unit High-capacity Matter Pod Backup Plating I [Rating: 15] Favorites ----------- Power Light Ion Engine Engine Light Ion Engine Power Core Light Nuclear Core Propulsion Aluminum Leg Leg Aluminum Leg Flight Unit Flight Unit Utility Hacking Suite Storage Small Storage Unit Processor Transport Network Coupler Hackware Hacking Suite Protection Backup Plating I Weapon Particle Cannon Energy Gun Small Laser Energy Cannon Particle Cannon Ballistic Gun Assault Rifle Launcher EMP Blaster Special Melee Weapon Datajack Build | -11 -10 -9 ------- Run | Yrd Mat Mat Slots Evolved 2 | . . 2 Power . | . . . Propulsion 2 | . . 2 Utility . | . . . Weapon . | . . . Parts Attached 29 | 7 6 16 Power 6 | 2 1 3 Engine 5 | 2 1 2 Core 1 | . . 1 Reactor . | . . . Propulsion 10 | 2 3 5 Treads . | . . . Leg 6 | 2 . 4 Wheel . | . . . Hover . | . . . Flight 4 | . 3 1 Utility 5 | 1 2 2 Device . | . . . Storage 1 | 1 . . Processor 1 | . . 1 Hackware 1 | . . 1 Protection 2 | . 2 . Artifact . | . . . Weapon 8 | 2 . 6 Energy Gun 2 | 1 . 1 Energy Cannon 2 | . . 2 Ballistic Gun 2 | 1 . 1 Ballistic Cannon . | . . . Launcher 1 | . . 1 Special Weapon . | . . . Impact Weapon . | . . . Slashing Weapon . | . . . Piercing Weapon . | . . . Special Melee Weapon 1 | . . 1 Unidentified Prototypes 2 | . . 2 Parts Lost 16 | . 1 15 Power 4 | . . 4 Propulsion 7 | . . 7 Utility 1 | . 1 . Weapon 4 | . . 4 Highest Loss Streak 5 | . 1 5 To Critical Strikes . | . . . Average Backups 4 | 4 4 3 Power 1 | . 1 . Propulsion 1 | 2 2 . Utility . | . . 1 Weapon . | . 1 . Tool/Special . | . . . Unused Backups 7 | . 4 3 Power . | . . . Propulsion 5 | . 4 1 Utility 1 | . . 1 Weapon 1 | . . 1 Tool/Special . | . . . Average Slot Usage (%) 73 | . 84 69 Engine 8 | . 14 6 Core 1 | . . 1 Leg 12 | . 11 12 Flight 12 | . 16 10 Storage 1 | . 6 . Processor 6 | . . 9 Hackware 7 | . . 10 Protection 3 | . 8 1 Energy Gun 4 | . 14 1 Energy Cannon 6 | . . 9 Ballistic Gun 4 | . 12 . Launcher 1 | . . 2 Special Melee Weapon 2 | . . 3 Peak Build Rating 15 | 6 7 15 Average Rating 8 | 5 5 9 On Entrance 4 | . 6 6 Avg Prop Armor Cover (%) 5 | . . 5 Naked Turns . | . . . Heaviest Build 13 | 13 13 13 Greatest Support 40 | 20 20 40 Greatest Overweight (x) 2 | . 1 2 Average Overweight (x) . | . . . Largest Inventory Capacity 8 | 8 8 5 Average Capacity 5 | 7 6 5 Most Carried 8 | 6 8 5 Average Carried 4 | 4 4 3 Final Capacity 8 | 8 5 5 Final Carried 6 | 6 4 3 Class Distribution -------------------- 61% | Mutant 38% | Scavenger-Mutant Dominant Class ---------------- Mutant | -10/Materials Scavenger-Mutant | -9/Materials Resources | -11 -10 -9 ----------- Run | Yrd Mat Mat Matter Collected 867 | 210 223 434 Remotely . | . . . Salvage Created 1294 | . 223 1071 Parts 81 | . 16 65 Haulers Intercepted 5 | . . 5 Recyclers Shooed 1 | . 1 . Parts Field Recycled . | . . . Retrieved Matter . | . . . Parts Self-Destructed . | . . . Prevented . | . . . Parts Restored . | . . . Kills | -11 -10 -9 ------- Run | Yrd Mat Mat Combat Hostiles Destroyed 23 | . 6 17 Guns 6 | . 6 . Cannons 12 | . . 12 AOE 4 | . . 4 Classes Destroyed 8 | . 3 5 Worker 2 | . . 2 Hauler 5 | . . 5 Recycler 1 | . . 1 Operator 1 | . . 1 Watcher 4 | . 2 2 Swarmer 7 | . 3 4 Grunt 13 | . 3 10 Sentry 3 | . . 3 Best Kill Streak 6 | . 2 6 Combat Bots Only 4 | . 2 4 Max Kills in Single Turn 2 | . 2 2 Gunslinging 1 | . 1 . Exploded 2 | . . 2 Melee . | . . . Uniques/NPCs Destroyed . | . . . Combat | -11 -10 -9 -------- Run | Yrd Mat Mat Hostile Shots Fired 139 | . 45 94 Missed 33 | . 10 23 Hits 106 | . 35 71 Projectile 106 | . 35 71 Critical Strikes 3 | . 1 2 Damage Taken 1829 | . 359 1470 Core 507 | . 105 402 Absorbed by Shields . | . . . Regen/Repaired (Parts) 58 | . 58 . Core Remaining (%) 79 | 100 58 . Volleys Fired 105 | . 32 73 Largest 2 | . 2 2 Hottest 108 | . 60 108 Shots Fired 150 | . 64 86 Gun 71 | . 64 7 Cannon 62 | . . 62 Launcher 17 | . . 17 Special . | . . . Kinetic 34 | . 32 2 Thermal 99 | . 32 67 Explosive . | . . . Electromagnetic 17 | . . 17 Robot Hit Streak 13 | . 13 8 Robot Miss Streak 5 | . 5 4 Penetration Max . | . . . Secondary Targets 3 | . 3 . Max Gunslinging Chain 1 | . 1 . Shots Hit Robots 98 | . 42 56 Core Hits 43 | . 13 30 Critical Kills 1 | . . 1 Critical Parts Destroyed . | . . . Critical Strikes 1 | . . 1 Meltdown 1 | . . 1 Melee Attacks 5 | . . 5 Impact . | . . . Slashing . | . . . Piercing . | . . . Sneak Attacks . | . . . Combat Hostiles . | . . . Follow-up Attacks . | . . . Damage Inflicted 2005 | . 502 1503 Guns 553 | . 502 51 Cannons 887 | . . 887 Explosions 565 | . . 565 Melee . | . . . Ramming . | . . . Kinetic 273 | . 273 . Thermal 1292 | . 229 1063 Explosive 151 | . . 151 Electromagnetic 289 | . . 289 Impact . | . . . Slashing . | . . . Piercing . | . . . Highest Corruption 5 | . 1 5 Average Corruption 2 | . 1 2 Corruption Purged . | . . . Corruption Blocked . | . . . Effects 6 | . . 6 Message Errors 4 | . . 4 Data Loss (minor) 1 | . . 1 Alerts 1 | . . 1 Overload Shots . | . . . Overflow Damage 106 | . . 106 Projectiles . | . . . Explosions 106 | . . 106 Melee . | . . . Knockbacks . | . . . Impact . | . . . Kinetic . | . . . Secondary . | . . . Self-Inflicted Damage 184 | . . 184 Shots 7 | . . 7 Rammed . | . . . Targets Rammed . | . . . Kicked . | . . . Crushed . | . . . Highest Temperature 453 | . 90 453 Average Temperature 81 | . 33 103 Received Heat Transfer 567 | . 138 429 Effects 1 | . . 1 Short Circuit 1 | . . 1 Siege Activations . | . . . Martial Activations . | . . . Shielding Activations . | . . . Robots Disrupted . | . . . Combat Hostiles . | . . . Robots Corrupted . | . . . Combat Hostiles . | . . . Parts Fried . | . . . Impact Corruptions . | . . . Robots Melted 1 | . . 1 Combat Hostiles 1 | . . 1 Parts Melted 5 | . 1 4 Heat Transferred 2340 | . 525 1815 Parts Sabotaged . | . . . Parts Stolen . | . . . Parts Stripped . | . . . Power Chain Reactions 4 | . . 4 Alert | -11 -10 -9 ------- Run | Yrd Mat Mat Maximum Alert Level 1 | . . 1 Low Security (%) 82 | 100 100 72 Level 1 17 | . . 27 Level 2 . | . . . Level 3 . | . . . Level 4 . | . . . Level 5 . | . . . High Security . | . . . Max Security . | . . . Peak Influence 270 | . 89 270 Initial 33 | . . 33 Average 63 | . 21 93 Influence Increases 904 | . 209 695 Destroy 0b10 Robot/C 460 | . 120 340 Destroy 0b10 Robot/NC 65 | . 10 55 Destroy Leader 148 | . 44 104 Successful Hack 43 | . 20 23 Disable Machine 75 | . . 75 Destroy Structure 53 | . . 53 Lose Combat Pursuer 60 | . 15 45 Influence Decreases 700 | . 128 572 Entered New Map 48 | . . 48 Time Decay 452 | . 128 324 Lost Part 120 | . . 120 Purge Threat 80 | . . 80 Squads Dispatched 7 | . 3 4 Investigation 2 | . 1 1 Extermination . | . . . Reinforcement 5 | . 2 3 Assault . | . . . Garrison . | . . . Intercept . | . . . Searches Triggered . | . . . Construction Impeded 1 | . . 1 Haulers Reinforced . | . . . Active Scanning Responses . | . . . Cargo Convoy Interrupts . | . . . Stealth | -11 -10 -9 --------- Run | Yrd Mat Mat Distress Signals 4 | . 2 2 Communications Jammed . | . . . Distress Signals . | . . . Times Spotted 42 | . 13 29 Peak Tracking Total 7 | . 4 7 Tactical Retreats 4 | . 1 3 Traps | -11 -10 -9 ------- Run | Yrd Mat Mat Traps Triggered 4 | . 2 2 Indirectly . | . . . Trap Hack Attempts . | . . . Triggered . | . . . Disarmed . | . . . Reprogrammed . | . . . Reused . | . . . Traps Extracted . | . . . Installed . | . . . Triggered . | . . . Machines | -11 -10 -9 ---------- Run | Yrd Mat Mat Machines Disabled 5 | . . 5 Max in Single Turn 2 | . . 2 Machines Repaired . | . . . Machines Dismantled . | . . . Machines Sabotaged . | . . . Overloaded Fab Kills . | . . . Hacking | -11 -10 -9 --------- Run | Yrd Mat Mat Machines Accessed 9 | . 3 6 Terminals 6 | . 2 4 Fabricators . | . . . Repair Stations 1 | . 1 . Recycling Units 1 | . . 1 Scanalyzers 1 | . . 1 Garrison Access . | . . . Total Hacks 42 | . 15 27 Successful 29 | . 8 21 Failed 13 | . 7 6 Catastrophic . | . . . Database Lockouts . | . . . Manual . | . . . Terminals 22 | . 7 15 Fabricators . | . . . Repair Stations 8 | . 8 . Recycling Units 1 | . . 1 Scanalyzers 11 | . . 11 Garrison Access . | . . . Terminal Hacks 11 | . 2 9 Record 1 | . . 1 Emergency Access Points 1 | . . 1 Terminal Index 1 | . 1 . Alert Level 2 | . 1 1 Unreport Threat 1 | . . 1 Patrol Status 1 | . . 1 Transport Status 1 | . . 1 Hauler Manifests 1 | . . 1 Registered Components 1 | . . 1 Zone Layout 1 | . . 1 Fabricator Hacks . | . . . Repair Station Hacks 6 | . 6 . Scan Component 3 | . 3 . Repair 2 | . 2 . Refit 1 | . 1 . Recycling Unit Hacks 1 | . . 1 Retrieve Components 1 | . . 1 Scanalyzer 11 | . . 11 Insert Component 2 | . . 2 Analyze 2 | . . 2 Retrieve Study 7 | . . 7 Garrison Access Hacks . | . . . Unauthorized Hacks . | . . . Terminals . | . . . Fabricators . | . . . Repair Stations . | . . . Recycling Units . | . . . Scanalyzers . | . . . Garrison Access . | . . . Data Cores Recovered . | . . . Used . | . . . Hacking Detections 8 | . 3 5 Full Trace Events 2 | . 1 1 Feedback Events 2 | . 1 1 Corruption 2 | . 1 1 Feedback Blocked . | . . . Robot Schematics Acquired . | . . . Robots Built . | . . . Authchips . | . . . Time . | . . . Total Robot Build Rating . | . . . Part Schematics Acquired 2 | . . 2 Parts Built . | . . . Authchips . | . . . Time . | . . . Total Part Build Rating . | . . . Part Studies Acquired 7 | . . 7 Parts Repaired 2 | . 2 . Time 62 | . 62 . Parts Recycled . | . . . Recycled Matter . | . . . Retrieved Matter . | . . . Retrieved Components 9 | . . 9 Parts Scanalyzed 2 | . . 2 Part Schematics Acquired 2 | . . 2 Parts Damaged . | . . . Bothacking | -11 -10 -9 ------------ Run | Yrd Mat Mat Used RIF Installer . | . . . Robots Hacked 2 | . . 2 Non-combat . | . . . Combat 2 | . . 2 Robot Hacks Applied 3 | . . 3 parse_system 3 | . . 3 Relay Couplers Released . | . . . Fabnet Peak Effective % . | . . . Robots Rewired . | . . . Allies Hacked . | . . . Hacks Repelled . | . . . Allies | -11 -10 -9 -------- Run | Yrd Mat Mat Total Allies . | . . . Largest Group . | . . . Highest-Rated Group . | . . . Highest-Rated Ally . | . . . Total Orders . | . . . Ally Attacks . | . . . Total Damage . | . . . Kills . | . . . Allies Corrupted . | . . . Allies Melted . | . . . Intel | -11 -10 -9 ------- Run | Yrd Mat Mat Active Infowar (turns) 809 | . . 809 T.N.C. 809 | . . 809 Robot Analysis Total . | . . . Derelict Logs Recovered . | . . . Drone Launches . | . . . Drone Recoveries . | . . . Exploration | -11 -10 -9 ------------- Run | Yrd Mat Mat Turns Passed 1543 | 171 403 969 Spaces Moved 1258 | 135 477 646 Core 142 | 14 . 128 Treads . | . . . Legs 421 | 121 93 207 Wheels . | . . . Hover . | . . . Flight 695 | . 384 311 Fastest Speed 37 | 50 37 37 Average Speed 91 | 112 53 115 Slowest Speed 150 | 120 120 150 Overloaded Moves . | . . . Propulsion Burnouts . | . . . Robots Hopped 1 | . 1 . Potential Cave-ins . | . . . Cave-ins Triggered 1 | . . 1 Exploration Rate (%) 29 | 7 35 45 Regions Visited 2 Branch Regions . Pre-discovered Areas . | . . . Known Exits Taken . | . . . Unknown Exits Taken 2 | 1 1 . Scrap Searched . | . . . Spaces Dug . | . . . Terrain Destroyed 52 | . . 52 Melee . | . . . Projectile . | . . . AOE 52 | . . 52 Terrain Rammed . | . . . Walls Destroyed . | . . . Machines Disabled . | . . . Actions | -11 -10 -9 --------- Run | Yrd Mat Mat Total 1495 | 153 562 780 Wait 42 | . 26 16 Move 1254 | 134 474 646 Hop 1 | . 1 . Pick Up 36 | 12 9 15 Fast Attach . | . . . Attach 25 | 6 5 14 Detach 3 | . 2 1 Swap 11 | 1 4 6 Drop 13 | . 9 4 Fire 105 | . 32 73 Melee 5 | . . 5 Ram . | . . . Kick . | . . . Crush . | . . . Escape Stasis . | . . . Rewire . | . . . Trap . | . . . Miscellaneous . | . . . Route ------- -11/Scrapyard -10/Materials -9/Materials (discovered 2 exits: [*Mat] / [*Min]) History --------- Turn | Location | Event 9 | -11/Scrapyard | Discovered new exit (range 15) 172 | -11/Scrapyard | Entered Materials 306 | -10/Materials | Build established: Mutant 328 | -10/Materials | Discovered new exit (range 9) 385 | -10/Materials | Repaired Assault Rifle 535 | -10/Materials | Repaired Broken Lgt. Ion Engine 575 | -10/Materials | Entered another Materials area 575 | -9/Materials | Evolved 2 slots: Propulsion x2 1129 | -9/Materials | Lost 3 parts (1p2n) 1222 | -9/Materials | Discovered new exit (range 15) 1341 | -9/Materials | Discovered new exit (range 14) 1418 | -9/Materials | Crushed by falling debris 1418 | -9/Materials | Core integrity fell below 50% 1530 | -9/Materials | Core integrity fell below 20% 1544 | -9/Materials | Destroyed by Y-45 Defender with Beam Rifle Last Messages --------------- Aluminum Leg destroyed. Lgt. Nuclear Core destroyed. U-05 Engineer lays Concrete. T-07 Excavator is excavating. U-05 Engineer lays Concrete. Y-45 Defender destroyed. U-05 Engineer lays Concrete. T-07 Excavator is excavating. U-05 Engineer lays Concrete. System corrupted: Component data lost. The unstable cave ceiling collapses. U-05 Engineer lays Concrete. T-07 Excavator is excavating. U-05 Engineer lays Concrete. Particle Cannon+ destroyed. U-05 Engineer lays Concrete. Acquired Beam Rifle. U-05 Engineer lays Concrete. The unstable cave ceiling collapses. U-05 Engineer lays Concrete. Map ----- +----------------------------------------------------+ | ???????????????????????????????????????????????? | | ???????????????????????????????????????????????? | | ???????????????????????????????????????????????? | | ???????????????????????????????????????????????? | | ???????????????????????????????????????????????? | | ???????????????????????????????????????????????? | | ???????????????????????????????????????????????? | | ???????????????????????????????????????????????? | | ????????????????????????????????? ?????????????? | | ????????????????????????????????" ?????????????? | | ????????????????????????????????" ?????????????? | | ???????????????????????????????? ??????#??????? | | ???????????????????????????????? ????? #?????? | | ??????????????????????????????##+##??## # ????? | | ?????????????????????????????? +?????? | | ?????????????????????????????? ??????? | | ?????????????????????????????? """ ???????? | | ?????????????????????????????? "Y" #????????? | | ????????????????????########### g g ###??????? | | ????????????????????# !!! # g ###??????? | | ????????????????????# !!! Y # #??????? | | ????????????????????# !!! #??????? | | ????????????????????# w ##?????? | | ????????????????????# # #?????? | | ????????????????????# u #?????? | | ????????????????????# @!= ##?????? | | ????????????????????# %! ##??????? | | ????????????????????##### ## # #??????? | | ????????????????????????#### # ##??????? | | ??????????????????????????# # ##???????? | | ?????????????????????????# #????????? | | ????????????????????????? # """ #????????? | | ??????????? ????????????# # """ #????????? | | ??????????# ####?############# """ #????????? | | ??????????# #????????? | | ??????????# #????????? | | ??????????# ^ #????????? | | ??????????# ############### #????????? | | ??????????# #???" =???????# #????????? | | ??????????# # """ #?????## #????????? | | ?########?# # """ #?????# #????????? | | ?#====**#?# # #?????# """ #????????? | | ?#==== *#?# # #?????# """ #????????? | | ## #?#= #? ###???## """ +????????? | | # ###%= ##+############ #????????? | | [% ^ #????????? | | * #????????? | | [[ " #????????? | | ##/####### [ #####????? | | # ## [[ ! =[ #????? | +----------------------------------------------------+ Best States ------------- Heat Dissipation 28 Energy Generation 14 Energy Capacity 250 Matter Stores 300 Matter Capacity 300 Sight Range 16 Terrain Scan Density 10 Armor Coverage 160 Evasion (%) 62 Offensive Hacking 10 Item Schematics ----------------- Flight Unit | -9/Materials | Scanalyzed Lgt. Ion Engine | -9/Materials | Scanalyzed Robot Schematics ------------------ None Fabricated ------------ Nothing Repaired ---------- Assault Rifle | 54% | -10/Materials Lgt. Ion Engine | 70% | -10/Materials | Broken Studied --------- Flight Unit | -9/Materials | Hacked Datajack | -9/Materials | Hacked Ion Engine | -9/Materials | Hacked Particle Cannon | -9/Materials | Hacked Sml. Laser | -9/Materials | Hacked Lgt. Ion Engine | -9/Materials | Hacked Lgt. Assault Rifle | -9/Materials | Hacked Alien Tech Used ----------------- None Achievements -------------- Everything Is Under Control Fitting Room Ghost 'Em Unlikely Earthworm Challenges ------------ None Game ------ Seed BeamScatterPurifier Manual? 0 Play Time 00:55:27 Cumulative 5.9 hours Start 2025.11.15 @ 15:01:38 End 2025.11.15 @ 20:41:01 Sessions 6 Manual Loads 0 Difficulty Rogue Special Mode None Game No. 6 Rogue 6 Adventurer 0 Explorer 0 Win Type - Total 0 Types 0/0/0/0/0/0/0/0/0/0 Lore% 1 Gallery% 6 Achievement% 7 Wizard Run 0 Options --------- Layout 1 ASCII 0 Keyboard 0 Movement Mouse Keybinds 0 Fullscreen 1 Font 48/Smallcaps Map View 50x35 Zoom Use 0% Tactical HUD 0 Map Filters NONE Filters NONE Steam 1 RUN: 9b92e687-fff9-42e1-903d-2349a74cd7e2